bitfinex-derivatives/quotes_SOLF0:USTF0_20250509
["timestamp","ask_amount","ask_price","bid_price","bid_amount"]
[1746754579337,1.7846,162.7,162.57,3.9708]
[1746754579538,1.7846,162.7,162.61,6.1505]
[1746754579740,1.5225,162.74,162.57,3.9708]
[1746754579941,1.5225,162.74,162.65,6.149]
[1746754580143,1.7846,162.76,162.61,9.83176929]
[1746754580344,1.7846,162.76,162.62,2.0048]
[1746754580937,6.1474,162.7,162.62,2.0048]
[1746754581138,6.1474,162.7,162.66,6.1484]
[1746754581943,6.1476,162.69,162.66,6.1484]
[1746754582344,1.7846,162.76,162.64,2.0063]
[1746754582941,6.148,162.68,162.64,2.0063]
[1746754583142,1.7846,162.76,162.62,2.0048]
[1746754583541,6.1492,162.65,162.62,2.0048]
[1746754583744,6.1492,162.65,162.61,6.1502]
[1746754584042,1.7846,162.76,162.61,6.1502]
[1746754584241,6.1495,162.64,162.6,6.1508]
[1746754584443,356.77796,162.74,162.59,2.0063]
[1746754584642,1.5229,162.73,162.59,2.0063]
[1746754584844,6.1491,162.65,162.61,6.1503]
[1746754585440,6.1491,162.65,162.59,2.0063]
[1746754586240,6.1495,162.64,162.59,2.0063]
[1746754586445,11.35466929,162.73,162.59,2.0063]
[1746754586745,356.77796,162.72,162.59,8.1575]
[1746754586943,356.77796,162.72,162.59,2.0063]
[1746754587140,356.77796,162.72,162.61,1.0]
[1746754587540,1.5229,162.73,162.61,1.0]
[1746754587737,1.7846,162.76,162.64,9.83176929]
[1746754587947,0.4863,162.78,162.65,1.9766]
[1746754588136,0.4863,162.78,162.65,3.9951]
[1746754588341,0.4863,162.78,162.7,6.1469]
[1746754588548,6.1456,162.75,162.7,6.1469]
[1746754588746,0.4863,162.78,162.7,6.1469]
[1746754589347,0.4863,162.78,162.66,1.9417]
[1746754589847,6.1466,162.72,162.68,6.1477]
[1746754590248,6.1466,162.72,162.66,1.9417]
[1746754590950,6.1466,162.72,162.68,6.1477]
[1746754591149,6.1468,162.71,162.66,1.9417]
[1746754591644,6.1465,162.72,162.66,1.9417]
[1746754592347,6.1461,162.73,162.66,1.9417]
[1746754592645,0.4863,162.78,162.66,1.9417]
[1746754593240,0.4863,162.78,162.7,6.1469]
[1746754593441,0.4863,162.78,162.66,1.9417]
[1746754593850,0.4863,162.78,162.69,6.1472]
[1746754594040,6.1459,162.74,162.66,1.9417]
[1746754594246,1.5214,162.79,162.68,9.83176929]
[1746754594452,1.5214,162.79,162.71,6.1467]
[1746754594651,6.1455,162.75,162.71,6.1467]
[1746754595158,6.1457,162.74,162.7,6.147]
[1746754597355,6.1461,162.73,162.7,6.147]
[1746754598053,6.1461,162.73,162.69,6.1472]
[1746754598356,6.1458,162.74,162.66,1.9417]
[1746754598654,1.5214,162.79,162.71,6.1468]
[1746754598854,6.1456,162.75,162.71,6.1468]
[1746754599052,1.5214,162.79,162.66,1.9417]
[1746754599252,1.5214,162.79,162.7,6.1469]
[1746754599855,6.1455,162.75,162.71,6.1468]
[1746754600257,1.5214,162.79,162.66,1.9417]
[1746754600456,6.1459,162.74,162.7,6.1469]
[1746754601354,6.146,162.73,162.7,6.1469]
[1746754601750,1.5214,162.79,162.7,6.1469]
[1746754602054,1.5214,162.79,162.71,6.1467]
[1746754602857,1.5214,162.79,162.72,6.1464]
[1746754603055,6.1455,162.75,162.72,6.1464]
[1746754603255,1.5214,162.79,162.66,1.9417]
[1746754603453,1.5214,162.79,162.7,6.147]
[1746754603654,6.146,162.74,162.7,6.147]
[1746754603855,1.5214,162.79,162.66,1.9417]
[1746754604250,6.1464,162.73,162.66,1.9417]
[1746754604456,1.5214,162.79,162.69,6.1474]
[1746754605057,1.5214,162.79,162.7,6.1471]
[1746754605252,6.1463,162.73,162.7,6.1471]
[1746754605559,1.5214,162.79,162.71,6.1467]
[1746754606052,6.1459,162.74,162.71,6.1467]
[1746754606258,356.77796,162.81,162.72,6.1463]
[1746754606763,100.54167981,162.82,162.71,9.83176929]
[1746754606951,6.144,162.79,162.71,9.83176929]
[1746754607154,98.75927981,162.82,162.72,4.0167]
[1746754607658,6.1438,162.79,162.72,4.0167]
[1746754607861,98.75927981,162.82,162.72,4.0167]
[1746754608059,6.1431,162.81,162.72,4.0167]
[1746754608356,6.1431,162.81,162.76,6.1446]
[1746754608553,6.1419,162.85,162.75,9.83176929]
[1746754608958,6.1419,162.85,162.8,6.1434]
[1746754609160,6.1419,162.84,162.8,6.1434]
[1746754609362,357.26136,162.91,162.75,9.83176929]
[1746754609560,357.26136,162.91,162.8,6.1432]
[1746754609751,6.1418,162.85,162.8,6.1432]
[1746754609955,357.26136,162.91,162.75,9.83176929]
[1746754610156,357.26136,162.91,162.78,6.1439]
[1746754610356,357.26136,162.91,162.75,9.83176929]
[1746754610763,6.1422,162.84,162.75,9.83176929]
[1746754610952,357.26136,162.91,162.75,9.83176929]
[1746754611265,1.10603046,162.9,162.73,1.9911]
[1746754611459,6.1418,162.85,162.8,6.1433]
[1746754611660,1.10603046,162.9,162.76,9.83176929]
[1746754612065,1.10603046,162.9,162.79,6.1437]
[1746754612559,1.10603046,162.9,162.76,9.83176929]
[1746754613161,6.1421,162.84,162.8,6.1431]
[1746754613355,1.10603046,162.9,162.8,6.1431]
[1746754613862,6.1423,162.83,162.8,6.1431]
[1746754614361,6.1423,162.83,162.79,6.1436]
[1746754614767,6.1423,162.83,162.8,6.1434]
[1746754615466,6.1423,162.83,162.79,6.1436]
[1746754616166,6.1427,162.82,162.78,6.1439]
[1746754617668,6.1424,162.83,162.79,6.1437]
[1746754617963,1.7825,162.92,162.76,9.83176929]
[1746754618156,6.141,162.87,162.82,6.1424]
[1746754618564,6.141,162.87,162.76,9.83176929]
[1746754619268,6.1411,162.86,162.76,9.83176929]
[1746754619765,1.7825,162.92,162.76,9.83176929]
[1746754619766,6.1408,162.87,162.83,6.1421]
[1746754620071,1.7825,162.92,162.76,9.83176929]
[1746754620370,6.1406,162.88,162.76,9.83176929]
[1746754620673,6.1406,162.88,162.8,9.83176929]
[1746754620874,1.7825,162.92,162.81,6.0261]
[1746754621069,98.04342956,162.93,162.81,6.0261]
[1746754621372,98.04342956,162.93,162.84,9.83176929]
[1746754621574,6.139,162.92,162.88,6.14]
[1746754621869,2.0014,162.97,162.84,9.83176929]
[1746754622171,2.0014,162.97,162.88,6.1403]
[1746754622373,2.0014,162.97,162.84,9.83176929]
[1746754622561,12.271,163.01,162.81,6.0261]
[1746754622768,6.1384,162.94,162.9,6.1395]
[1746754622967,3.7838,163.02,162.88,9.83176929]
[1746754623169,6.1356,163.01,162.96,6.137]
[1746754623374,6.1356,163.01,162.92,9.83176929]
[1746754623868,6.1352,163.02,162.97,6.1369]
[1746754624069,202.70822193,163.05,162.92,9.83176929]
[1746754625075,97.9804451,163.05,162.92,9.83176929]
[1746754625676,107.81221439,163.05,162.89,5.9867]
[1746754625974,357.88261864,163.04,162.89,5.9867]
[1746754626275,357.88261864,163.04,162.89,1.9774]
[1746754626574,9.83176929,163.01,162.89,1.9774]
[1746754626776,356.77796,163.0,162.81,3.877]
[1746754626978,356.77796,163.0,162.82,2.0265]
[1746754627177,3.2964,162.99,162.82,2.0265]
[1746754627781,0.4776,162.98,162.82,2.0265]
[1746754633178,356.77796,162.97,162.82,2.0265]
[1746754634185,37.14,162.96,162.82,2.0265]
[1746754635584,37.14,162.96,162.82,11.85826929]
[1746754638084,37.0,163.0,162.86,9.83176929]
[1746754638380,37.0,163.0,162.87,37.0]
[1746754638788,37.0,163.0,162.9,9.83176929]
[1746754638985,37.0,163.0,162.91,4.0763]
[1746754639186,37.0,163.0,162.92,37.0]
[1746754641090,37.0,163.0,162.92,74.0]
[1746754646691,37.0,163.0,162.92,37.0]
[1746754647189,37.0,163.0,162.9,36.94]
[1746754647387,73.94,163.0,162.9,36.94]
[1746754649295,73.94,163.0,162.9,37.94]
[1746754650493,73.94,163.0,162.91,2.0984]
[1746754650794,37.0,163.0,162.91,2.0984]
[1746754652593,393.75796,163.04,162.91,11.93016929]
[1746754653195,36.98,163.04,162.91,11.93016929]
[1746754655997,97.9804451,163.05,162.91,11.93016929]
[1746754659099,97.9804451,163.05,162.92,62.0]
[1746754659299,97.9804451,163.05,162.93,36.98]
[1746754659501,97.9804451,163.05,162.94,2.0324]
[1746754659797,97.9804451,163.05,162.95,36.86]
[1746754659995,6.134,163.04,162.95,38.9566]
[1746754660395,97.9804451,163.05,162.95,38.9566]
[1746754660692,6.1344,163.03,163.0,6.1352]
[1746754660898,6.1344,163.03,162.95,38.9566]
[1746754661100,97.9804451,163.05,162.95,38.9566]
[1746754661301,97.9804451,163.05,162.99,6.1356]
[1746754662100,6.1345,163.02,162.98,6.1359]
[1746754662701,6.1345,163.02,162.99,6.1356]
[1746754662999,6.1342,163.03,162.99,6.1356]
[1746754663603,6.1345,163.02,162.99,6.1356]
[1746754666607,6.1342,163.03,162.99,6.1356]
[1746754667800,6.1342,163.03,162.96,6.09948952]
[1746754668001,6.1342,163.03,163.0,6.1352]
[1746754668602,6.1342,163.03,162.99,6.1354]
[1746754668801,6.1345,163.02,162.99,6.1354]
[1746754669305,6.1343,163.03,162.99,6.1354]
[1746754670008,6.1343,163.03,163.0,6.1352]
[1746754670502,104.1139451,163.05,162.98,36.98]
[1746754670705,36.98,163.08,162.99,6.09948952]
[1746754670906,36.98,163.08,163.0,36.76]
[1746754671114,6.1332,163.06,163.03,6.1341]
[1746754671598,36.98,163.08,163.0,36.76]
[1746754672109,36.98,163.08,163.01,6.1346]
[1746754672308,6.1334,163.05,163.01,6.1346]
[1746754673109,6.1334,163.05,163.02,6.1344]
[1746754675313,6.1334,163.05,163.0,36.76]
[1746754675314,6.1342,163.03,163.0,36.76]
[1746754675611,36.98,163.08,163.0,36.76]
[1746754675907,6.1341,163.04,163.0,42.895]
[1746754676114,36.98,163.08,163.0,42.855]
[1746754676513,6.1342,163.03,163.0,42.855]
[1746754679119,6.1345,163.02,163.0,36.72]
[1746754679516,36.98,163.08,163.0,36.72]
[1746754679917,36.98,163.08,163.0,42.8552]
[1746754680218,6.1339,163.04,163.0,42.8552]
[1746754680412,36.98,163.08,163.0,36.72]
[1746754680817,6.1344,163.03,163.0,36.72]
[1746754681521,6.1345,163.02,163.0,36.72]
[1746754681718,36.98,163.08,163.0,36.72]
[1746754682118,6.1348,163.01,163.0,36.72]
[1746754682418,6.1348,163.01,162.98,43.1157]
[1746754682619,6.1353,163.0,162.98,36.98]
[1746754682920,1.7749,163.07,162.98,36.98]
[1746754683121,6.1351,163.01,162.98,43.1159]
[1746754684721,36.76,163.03,162.9,1.0]
[1746754685016,79.49948952,163.03,162.9,74.4]
[1746754685216,6.1379,162.93,162.9,80.5389]
[1746754685923,36.76,162.98,162.9,74.4]
[1746754686328,6.138,162.93,162.9,74.4]
[1746754686529,36.76,162.98,162.9,1.0]
[1746754686729,73.38,162.98,162.9,1.0]
[1746754687031,6.1386,162.91,162.9,1.0]
[1746754691427,1.7783,162.92,162.82,36.76]
[1746754691729,1.22767172,162.91,162.79,73.36]
[1746754691934,1.22767172,162.91,162.77,36.6]
[1746754692133,0.4804,162.9,162.77,36.6]
[1746754692531,0.4804,162.9,162.81,6.1423]
[1746754693030,1.22782245,162.89,162.81,6.1423]
[1746754693237,6.1412,162.85,162.81,6.1423]
[1746754693431,36.76,162.88,162.77,36.6]
[1746754693735,6.1415,162.84,162.77,36.6]
[1746754694032,36.76,162.88,162.79,6.1429]
[1746754694236,6.1423,162.82,162.75,40.8177]
[1746754694433,6.1423,162.82,162.76,36.58]
[1746754695024,6.1423,162.82,162.75,40.8177]
[1746754695228,36.76,162.88,162.76,36.56]
[1746754695635,6.142,162.82,162.76,36.56]
[1746754696542,6.142,162.82,162.77,6.1438]
[1746754696836,36.76,162.88,162.76,36.56]
[1746754697031,1.22797323,162.87,162.77,6.1438]
[1746754697535,1.22797323,162.87,162.75,40.8177]
[1746754697830,1.22797323,162.87,162.77,6.1439]
[1746754698035,1.22797323,162.87,162.75,77.3777]
[1746754698232,1.22797323,162.87,162.78,6.1434]
[1746754698535,6.1424,162.81,162.75,77.3777]
[1746754698739,6.1424,162.81,162.77,6.1435]
[1746754699439,6.1424,162.81,162.78,6.1435]
[1746754699839,6.1421,162.82,162.78,6.1435]
[1746754700041,1.22842577,162.81,162.75,77.3777]
[1746754700540,1.22842577,162.81,162.8,6.1428]
[1746754700741,1.22842577,162.81,162.75,77.3777]
[1746754702238,1.22842577,162.81,162.75,40.8177]
[1746754702436,6.1431,162.8,162.76,6.144]
[1746754703037,7.37092577,162.81,162.77,6.1439]
[1746754703641,1.22842577,162.81,162.75,40.8177]
[1746754703843,1.22842577,162.81,162.73,36.5]
[1746754704042,1.22842577,162.81,162.71,82.81473221]
[1746754704240,6.1438,162.78,162.74,6.145]
[1746754704541,1.22842577,162.81,162.71,82.81473221]
[1746754704842,6.1428,162.8,162.71,82.81473221]
[1746754705042,1.22857669,162.79,162.71,82.81473221]
[1746754706039,1.22857669,162.79,162.76,6.1439]
[1746754707242,7.37177669,162.79,162.76,6.1439]
[1746754707441,1.22857669,162.79,162.71,82.81473221]
[1746754707747,1.22857669,162.79,162.71,36.54]
[1746754707941,37.76857669,162.79,162.71,36.54]
[1746754708142,6.1446,162.76,162.71,6.146]
[1746754708343,37.76857669,162.79,162.71,6.146]
[1746754708743,6.1446,162.76,162.71,6.146]
[1746754708943,37.76857669,162.79,162.71,6.146]
[1746754709246,6.1446,162.76,162.71,6.146]
[1746754709444,37.76857669,162.79,162.71,6.146]
[1746754709842,6.1449,162.75,162.71,6.146]
[1746754710043,6.1449,162.75,162.72,6.1458]
[1746754710946,6.1449,162.75,162.71,6.146]
[1746754711148,37.76857669,162.79,162.68,6.0184]
[1746754711545,6.1457,162.73,162.69,6.1469]
[1746754711749,1.22857669,162.79,162.68,12.13823569]
[1746754711944,36.54,162.78,162.71,1.0]
[1746754712145,1.22872765,162.77,162.71,1.0]
[1746754712949,6.1449,162.75,162.71,7.1459]
[1746754713152,1.22895416,162.74,162.71,7.1459]
[1746754713345,1.22895416,162.74,162.71,1.0]
[1746754713544,1.22895416,162.74,162.72,6.1454]
[1746754714652,1.22895416,162.74,162.71,1.0]
[1746754715053,7.37425416,162.74,162.71,1.0]
[1746754716255,6.1455,162.73,162.71,1.0]
[1746754716454,1.22895416,162.74,162.71,1.0]
[1746754718155,6.1458,162.72,162.71,1.0]
[1746754718652,36.56,162.73,162.63,86.79248208]
[1746754718859,36.56,162.73,162.65,6.1481]
[1746754719157,36.56,162.73,162.63,88.75918208]
[1746754719355,6.1468,162.7,162.66,6.148]
[1746754719858,6.1469,162.69,162.66,6.148]
[1746754720152,36.56,162.73,162.66,6.148]
[1746754720358,6.1468,162.7,162.66,6.148]
[1746754720659,36.56,162.73,162.64,6.1485]
[1746754720958,6.1473,162.69,162.63,88.75918208]
[1746754721159,36.56,162.73,162.63,88.75918208]
[1746754721353,36.56,162.73,162.65,6.1484]
[1746754721559,36.56,162.73,162.63,88.73918208]
[1746754722059,6.1475,162.68,162.64,6.1485]
[1746754722457,36.56,162.73,162.63,42.5688]
[1746754722659,36.56,162.73,162.61,1.0]
[1746754723156,6.1494,162.63,162.61,1.0]
[1746754723352,36.56,162.66,162.61,1.0]
[1746754723761,6.1496,162.62,162.61,1.0]
[1746754724060,36.56,162.66,162.61,1.0]
[1746754724761,6.1489,162.64,162.61,7.1497]
[1746754725261,36.56,162.66,162.61,7.1497]
[1746754725464,36.36,162.68,162.61,1.0]
[1746754725465,36.56,162.68,162.61,1.0]
[1746754725957,6.148,162.67,162.63,6.1488]
[1746754726153,36.56,162.68,162.63,6.1488]
[1746754726359,6.1478,162.67,162.64,6.1488]
[1746754726558,36.56,162.68,162.61,1.0]
[1746754727463,6.1496,162.62,162.61,1.0]
[1746754732368,1.7828,162.69,162.61,1.0]
[1746754732571,1.22940742,162.68,162.61,1.0]
[1746754732764,37.50940742,162.68,162.61,1.0]
[1746754732963,6.1483,162.66,162.61,1.0]
[1746754733166,37.50940742,162.68,162.64,6.1487]
[1746754733365,37.50940742,162.68,162.61,37.28]
[1746754733566,1.229483,162.67,162.61,37.28]
[1746754733764,7.377283,162.67,162.63,6.1491]
[1746754733964,1.229483,162.67,162.61,37.28]
[1746754734970,7.377183,162.67,162.63,6.1489]
[1746754735166,7.377183,162.67,162.61,37.28]
[1746754735571,7.377183,162.67,162.63,6.1489]
[1746754735970,1.229483,162.67,162.61,37.28]
[1746754736966,1.22940742,162.68,162.62,36.28]
[1746754737168,1.22940742,162.68,162.65,6.1482]
[1746754737465,1.22940742,162.68,162.66,1.943]
[1746754738170,7.37680742,162.68,162.66,1.943]
[1746754739473,1.22940742,162.68,162.66,1.943]
[1746754740469,7.37670742,162.68,162.66,1.943]
[1746754741075,6.1477,162.67,162.66,1.943]
[1746754741277,6.1477,162.67,162.63,8.2124]
[1746754741477,6.1477,162.67,162.63,2.0634]
[1746754741674,1.22940742,162.68,162.62,1.897]
[1746754741877,37.509483,162.67,162.61,1.0]
[1746754742177,6.1496,162.62,162.61,1.0]
[1746754745284,6.1515,162.57,162.53,42.4251]
[1746754745482,6.1515,162.57,162.53,78.5851]
[1746754745682,36.28,162.62,162.55,6.152]
[1746754745883,6.1509,162.59,162.55,6.152]
[1746754746279,1.22993665,162.61,162.55,6.152]
[1746754746481,6.151,162.59,162.55,6.152]
[1746754747480,6.1512,162.58,162.54,6.1525]
[1746754747681,1.22993665,162.61,162.53,78.5851]
[1746754748185,6.1508,162.59,162.55,6.1519]
[1746754748386,1.22993665,162.61,162.53,78.5851]
[1746754749381,6.1506,162.6,162.53,78.5851]
[1746754749778,1.22993665,162.61,162.53,78.5851]
[1746754750586,6.1517,162.57,162.53,78.5851]
[1746754750986,6.1517,162.57,162.53,42.4251]
[1746754751188,6.1517,162.57,162.53,48.5778]
[1746754751890,6.1523,162.55,162.53,40.3437]
[1746754752085,6.1523,162.55,162.53,2.0335]
[1746754752290,36.12,162.6,162.5,36.12]
[1746754752488,6.1525,162.55,162.5,42.2738]
[1746754752692,1.23008795,162.59,162.5,6.1538]
[1746754752989,1.23008795,162.59,162.49,5.9278]
[1746754753792,6.1528,162.54,162.5,6.1538]
[1746754754194,36.3,162.57,162.49,5.9278]
[1746754754396,6.1533,162.53,162.49,12.0821]
[1746754755500,6.1533,162.53,162.5,6.1541]
[1746754755702,6.1527,162.54,162.5,6.1541]
[1746754756099,1.23031496,162.56,162.5,6.1541]
[1746754756299,1.23031496,162.56,162.45,36.3]
[1746754757004,1.23031496,162.56,162.46,6.1553]
[1746754757501,1.23031496,162.56,162.45,36.3]
[1746754757896,6.1531,162.53,162.48,6.1548]
[1746754758104,1.23031496,162.56,162.45,36.3]
[1746754758301,1.23031496,162.56,162.45,46.09038208]
[1746754758499,6.1523,162.55,162.51,6.1536]
[1746754758700,1.23031496,162.56,162.45,46.09038208]
[1746754758899,1.23031496,162.56,162.49,36.08]
[1746754759102,1.23031496,162.56,162.5,6.1136]
[1746754759496,6.1528,162.54,162.5,12.2674]
[1746754761505,6.1523,162.55,162.51,6.1537]
[1746754762503,1.23031496,162.56,162.5,6.1136]
[1746754763005,6.1528,162.54,162.5,12.2674]
[1746754763206,1.23031496,162.56,162.5,6.1136]
[1746754763800,6.1524,162.55,162.51,6.1536]
[1746754764006,1.23031496,162.56,162.5,6.1136]
[1746754764897,6.1523,162.55,162.5,12.2674]
[1746754765303,1.23031496,162.56,162.5,6.1136]
[1746754765508,6.153,162.53,162.5,6.1136]
[1746754766308,6.153,162.53,162.5,12.2677]
[1746754766607,6.153,162.53,162.5,6.1136]
[1746754767811,1.23031496,162.56,162.5,6.1136]
[1746754768005,1.23031496,162.56,162.5,2.0665]
[1746754768412,6.1537,162.51,162.5,2.0665]
[1746754769912,6.1537,162.51,162.47,42.1551]
[1746754770810,1.23031496,162.56,162.46,1.9376]
[1746754771211,1.23031496,162.56,162.44,37.9123]
[1746754771212,1.9373,162.55,162.44,37.9123]
[1746754771508,1.23046634,162.54,162.44,44.0685]
[1746754771708,36.04,162.53,162.44,44.0685]
[1746754771912,6.1551,162.48,162.44,44.0685]
[1746754772308,6.1551,162.48,162.44,8.0885]
[1746754772910,1.23061777,162.52,162.44,8.0885]
[1746754773515,6.155,162.48,162.44,8.0885]
[1746754774109,6.1546,162.49,162.45,6.1557]
[1746754774314,6.1546,162.49,162.44,1.9323]
[1746754774713,6.1546,162.49,162.45,6.1558]
[1746754776614,6.1549,162.48,162.45,6.1558]
[1746754776814,1.23061777,162.52,162.45,6.1558]
[1746754777015,1.23061777,162.52,162.44,8.0885]
[1746754777217,1.23061777,162.52,162.44,1.9323]
[1746754777611,6.1552,162.47,162.44,8.0885]
[1746754777917,1.23061777,162.52,162.44,8.0885]
[1746754778111,6.1551,162.48,162.44,8.0885]
[1746754778315,1.23061777,162.52,162.44,1.9323]
[1746754779115,6.156,162.45,162.44,1.9323]
[1746754779421,37.15061777,162.52,162.42,2.0046]
[1746754779912,37.15061777,162.52,162.45,1.0]
[1746754780219,6.1551,162.48,162.45,1.0]
[1746754780418,37.15061777,162.52,162.45,1.0]
[1746754780820,6.1548,162.49,162.45,7.1558]
[1746754781122,37.15061777,162.52,162.45,1.0]
[1746754782418,6.1556,162.46,162.45,1.0]
[1746754789523,6.1556,162.46,162.41,37.8772]
[1746754789524,6.157,162.43,162.39,41.97857391]
[1746754790229,6.157,162.43,162.39,48.13667391]
[1746754790526,6.157,162.43,162.39,6.13857391]
[1746754792025,6.157,162.43,162.4,6.1579]
[1746754793231,1.23107226,162.46,162.39,6.13857391]
[1746754793430,1.23107226,162.46,162.42,6.13857391]
[1746754793626,1.23107226,162.46,162.43,35.82]
[1746754793926,37.03061777,162.52,162.45,6.13857391]
[1746754794530,6.1544,162.5,162.46,6.1556]
[1746754794727,37.03061777,162.52,162.45,6.13857391]
[1746754795036,1.23061777,162.52,162.48,6.13857391]
[1746754795330,1.23061777,162.52,162.48,41.93857391]
[1746754795832,6.1537,162.51,162.48,41.93857391]
[1746754796231,1.23061777,162.52,162.48,41.93857391]
[1746754797132,7.38421777,162.52,162.48,41.93857391]
[1746754797633,1.23061777,162.52,162.48,48.09317391]
[1746754798134,7.38421777,162.52,162.48,41.93857391]
[1746754800035,6.1539,162.51,162.48,41.93857391]
[1746754800232,1.23061777,162.52,162.48,41.93857391]
[1746754800533,1.23061777,162.52,162.48,35.8]
[1746754800733,7.38411777,162.52,162.48,35.8]
[1746754801135,7.38411777,162.52,162.48,41.9546]
[1746754801830,1.23061777,162.52,162.44,1.9424]
[1746754802037,1.23061777,162.52,162.44,37.7424]
[1746754802235,1.23061777,162.52,162.45,35.74]
[1746754802638,1.23061777,162.52,162.46,6.13857391]
[1746754803926,6.1543,162.5,162.46,12.29397391]
[1746754804235,1.23061777,162.52,162.46,41.85857391]
[1746754804638,1.23061777,162.52,162.49,6.1542]
[1746754805338,7.38401777,162.52,162.48,6.1547]
[1746754805639,1.23061777,162.52,162.49,6.1542]
[1746754807142,7.38401777,162.52,162.48,6.1548]
[1746754807342,1.23061777,162.52,162.47,2.0825]
[1746754807739,7.38411777,162.52,162.48,6.1548]
[1746754807938,1.23061777,162.52,162.47,2.0825]
[1746754808639,1.23061777,162.52,162.49,6.1544]
[1746754808933,1.23061777,162.52,162.47,2.0825]
[1746754809441,7.38401777,162.52,162.48,6.1546]
[1746754810041,1.23061777,162.52,162.49,6.1544]
[1746754812435,1.23061777,162.52,162.47,2.0825]
[1746754813140,1.23061777,162.52,162.5,6.1539]
[1746754813442,1.23061777,162.52,162.51,35.64]
[1746754814040,1.23061777,162.52,162.51,41.7937]
[1746754814639,1.23061777,162.52,162.51,35.64]
[1746754816739,7.38391777,162.52,162.51,35.64]
[1746754817344,1.23061777,162.52,162.51,35.64]
[1746754817541,1.23046634,162.54,162.51,35.64]
[1746754817735,1.23046634,162.54,162.51,41.7935]
[1746754818141,1.23046634,162.54,162.51,35.64]
[1746754818342,1.23031496,162.56,162.54,6.1525]
[1746754818735,1.23031496,162.56,162.52,2.0557]
[1746754819442,1.23031496,162.56,162.54,6.1523]
[1746754819943,1.23031496,162.56,162.53,6.1529]
[1746754820339,1.23031496,162.56,162.52,2.0557]
[1746754820841,6.1524,162.55,162.52,2.0557]
[1746754821145,1.23031496,162.56,162.51,35.64]
[1746754822039,6.153,162.53,162.49,41.9543]
[1746754822239,1.23031496,162.56,162.49,71.34]
[1746754822744,6.1532,162.53,162.49,71.34]
[1746754823245,6.1532,162.53,162.49,77.4944]
[1746754823642,6.1527,162.54,162.49,71.34]
[1746754823842,6.1527,162.54,162.5,6.1539]
[1746754824645,1.23031496,162.56,162.49,71.34]
[1746754824845,1.23031496,162.56,162.5,3.9607]
[1746754825344,1.23031496,162.56,162.53,6.1529]
[1746754825544,1.23031496,162.56,162.5,3.9607]
[1746754825946,1.23031496,162.56,162.54,6.1523]
[1746754826141,1.23031496,162.56,162.54,41.6523]
[1746754826444,1.23031496,162.56,162.54,35.5]
[1746754827139,1.23031496,162.56,162.55,6.1522]
[1746754828152,1.23031496,162.56,162.54,41.6525]
[1746754828850,1.23031496,162.56,162.55,6.1522]
[1746754829050,1.23008795,162.59,162.54,35.5]
[1746754829245,1.23008795,162.59,162.54,71.02]
[1746754829450,1.23008795,162.59,162.58,6.1511]
[1746754830745,1.22993665,162.61,162.6,6.1503]
[1746754831245,1.22955858,162.66,162.6,6.12831917]
[1746754831749,1.22955858,162.66,162.59,35.46]
[1746754832051,1.22955858,162.66,162.61,6.1496]
[1746754832251,1.22955858,162.66,162.59,35.46]
[1746754833350,6.1486,162.65,162.61,6.1499]
[1746754834249,6.1486,162.65,162.6,6.1502]
[1746754834452,6.1488,162.64,162.6,6.1502]
[1746754834751,1.22955858,162.66,162.59,35.46]
[1746754835049,1.22955858,162.66,162.6,6.1502]
[1746754835451,1.22955858,162.66,162.6,7.3802123]
[1746754835953,6.1489,162.64,162.6,7.3802123]